[Event "Late-Titled-Tuesday-Blitz-May-28-2024"]
[Site "Chess.com"]
[Date "2024.05.28"]
[Round "1"]
[White "AlexeiShirov"]
[Black "guillembaches"]
[Result "1-0"]
[WhiteElo "2898"]
[BlackElo "2491"]
[TimeControl "180+1"]
[EndTime "14:07:45 PDT"]
[Termination "AlexeiShirov won on time"]

1. e4 {[%clk 0:03:00.9]} 1... d5 {[%clk 0:03:00.1]} 2. exd5 {[%clk 0:02:59.8]}
2... Qxd5 {[%clk 0:03:01]} 3. Nc3 {[%clk 0:02:58.7]} 3... Qa5 {[%clk 0:03:00.8]}
4. d4 {[%clk 0:02:55.3]} 4... Nf6 {[%clk 0:03:01.3]} 5. Bd2 {[%clk 0:02:46.5]}
5... Bg4 {[%clk 0:03:00.6]} 6. f3 {[%clk 0:02:43.1]} 6... Bd7 {[%clk 0:03:00.3]}
7. Bc4 {[%clk 0:02:36.1]} 7... Qb6 {[%clk 0:03:00.2]} 8. Nge2 {[%clk 0:02:35.1]}
8... e6 {[%clk 0:03:00.2]} 9. a4 {[%clk 0:02:16.3]} 9... a5 {[%clk 0:02:59.4]}
10. b3 {[%clk 0:02:12]} 10... Be7 {[%clk 0:02:42.4]} 11. Be3 {[%clk 0:02:09.2]}
11... O-O {[%clk 0:02:39.9]} 12. Qd2 {[%clk 0:02:04.9]} 12... c5 {[%clk
0:02:32.7]} 13. d5 {[%clk 0:01:56.1]} 13... exd5 {[%clk 0:02:29]} 14. Nxd5
{[%clk 0:01:55.4]} 14... Nxd5 {[%clk 0:02:27.3]} 15. Bxd5 {[%clk 0:01:55.2]}
15... Nc6 {[%clk 0:02:03.3]} 16. O-O {[%clk 0:01:52.3]} 16... Rad8 {[%clk
0:02:01.5]} 17. Nf4 {[%clk 0:01:43.4]} 17... Nb4 {[%clk 0:01:46.2]} 18. Qf2
{[%clk 0:01:40.4]} 18... Bf5 {[%clk 0:01:28.9]} 19. c4 {[%clk 0:01:38.2]} 19...
Nd3 {[%clk 0:01:15.7]} 20. Nxd3 {[%clk 0:01:34.7]} 20... Bxd3 {[%clk 0:01:16.5]}
21. Rfe1 {[%clk 0:01:26.4]} 21... Qxb3 {[%clk 0:01:03.1]} 22. Bxc5 {[%clk
0:01:22.7]} 22... Bxc5 {[%clk 0:00:56.2]} 23. Qxc5 {[%clk 0:01:22.3]} 23... Rc8
{[%clk 0:00:47.7]} 24. Bxf7+ {[%clk 0:00:57.4]} 24... Kh8 {[%clk 0:00:37.9]} 25.
Qe7 {[%clk 0:00:39.1]} 25... Bxc4 {[%clk 0:00:28.9]} 26. Bxc4 {[%clk 0:00:38.4]}
26... Qxc4 {[%clk 0:00:29.4]} 27. Qxb7 {[%clk 0:00:38.2]} 27... h6 {[%clk
0:00:26.1]} 28. Qe4 {[%clk 0:00:37.6]} 28... Qxe4 {[%clk 0:00:21.4]} 29. Rxe4
{[%clk 0:00:36.9]} 29... Rc2 {[%clk 0:00:21.7]} 30. Rd1 {[%clk 0:00:35.9]} 30...
Rb8 {[%clk 0:00:21.4]} 31. h4 {[%clk 0:00:35.7]} 31... Rb4 {[%clk 0:00:14.8]}
32. Rdd4 {[%clk 0:00:34.6]} 32... Rbb2 {[%clk 0:00:10.3]} 33. Rg4 {[%clk
0:00:33.7]} 33... Rc7 {[%clk 0:00:10.4]} 34. Rd5 {[%clk 0:00:31.8]} 34... Ra7
{[%clk 0:00:10.5]} 35. h5 {[%clk 0:00:30.6]} 35... Ra2 {[%clk 0:00:10.7]} 36.
Kh2 {[%clk 0:00:30.6]} 36... Kh7 {[%clk 0:00:10.7]} 37. Re4 {[%clk 0:00:29.6]}
37... Ra3 {[%clk 0:00:09.2]} 38. Kh3 {[%clk 0:00:29]} 38... Ra1 {[%clk
0:00:08.4]} 39. Rf4 {[%clk 0:00:28.6]} 39... Rb1 {[%clk 0:00:03.6]} 40. g4
{[%clk 0:00:27.9]} 40... Rb4 {[%clk 0:00:02.8]} 41. Rdd4 {[%clk 0:00:27.6]}
41... Rb2 {[%clk 0:00:02.2]} 42. Kg3 {[%clk 0:00:26.4]} 42... Rc7 {[%clk
0:00:01.9]} 43. Rf5 {[%clk 0:00:26.3]} 43... Rcc2 {[%clk 0:00:02]} 44. Rxa5
{[%clk 0:00:25.1]} 44... Rg2+ {[%clk 0:00:01.5]} 45. Kf4 {[%clk 0:00:25.2]}
45... Rb7 {[%clk 0:00:01.7]} 46. Rd8 {[%clk 0:00:23.6]} 46... Rf7+ {[%clk
0:00:01.3]} 47. Rf5 {[%clk 0:00:23.4]} 47... Rxf5+ {[%clk 0:00:01]} 48. Kxf5
{[%clk 0:00:22.9]} 48... Ra2 {[%clk 0:00:01.9]} 49. Rd4 {[%clk 0:00:22.8]} 1-0

[Event "Late-Titled-Tuesday-Blitz-May-28-2024"]
[Site "Chess.com"]
[Date "2024.05.28"]
[Round "1"]
[White "laskakid"]
[Black "AldokhinIvan"]
[Result "0-1"]
[WhiteElo "2350"]
[BlackElo "2629"]
[TimeControl "180+1"]
[EndTime "14:07:48 PDT"]
[Termination "AldokhinIvan won on time"]

1. e4 {[%clk 0:03:00.9]} 1... c5 {[%clk 0:02:44.8]} 2. Nf3 {[%clk 0:03:00.5]}
2... e6 {[%clk 0:02:44.9]} 3. d3 {[%clk 0:03:00.4]} 3... Nc6 {[%clk 0:02:44.3]}
4. g3 {[%clk 0:03:00]} 4... g6 {[%clk 0:02:44.8]} 5. Bg2 {[%clk 0:02:59.9]} 5...
Bg7 {[%clk 0:02:45.5]} 6. O-O {[%clk 0:03:00]} 6... Nge7 {[%clk 0:02:46.2]} 7.
Re1 {[%clk 0:02:59.7]} 7... O-O {[%clk 0:02:46.1]} 8. c3 {[%clk 0:02:58.8]} 8...
b6 {[%clk 0:02:45.3]} 9. d4 {[%clk 0:02:55.3]} 9... cxd4 {[%clk 0:02:44.1]} 10.
cxd4 {[%clk 0:02:55.5]} 10... d5 {[%clk 0:02:44.6]} 11. e5 {[%clk 0:02:55.5]}
11... a5 {[%clk 0:02:35]} 12. Nc3 {[%clk 0:02:44.7]} 12... Ba6 {[%clk
0:02:34.5]} 13. a3 {[%clk 0:02:41.2]} 13... b5 {[%clk 0:02:31.7]} 14. h4 {[%clk
0:02:37.2]} 14... h6 {[%clk 0:02:23.4]} 15. Bf4 {[%clk 0:02:32.8]} 15... Nc8
{[%clk 0:02:02.8]} 16. Rc1 {[%clk 0:02:26.7]} 16... Nb6 {[%clk 0:02:01]} 17. Nb1
{[%clk 0:01:43.2]} 17... b4 {[%clk 0:01:59.8]} 18. a4 {[%clk 0:01:39.3]} 18...
Rc8 {[%clk 0:01:41.8]} 19. Nbd2 {[%clk 0:01:36.7]} 19... Nc4 {[%clk 0:01:34.3]}
20. Nxc4 {[%clk 0:01:20.5]} 20... dxc4 {[%clk 0:01:35.2]} 21. Bf1 {[%clk
0:01:13.1]} 21... Ne7 {[%clk 0:01:34.3]} 22. Qd2 {[%clk 0:01:06.9]} 22... Bb7
{[%clk 0:01:21.1]} 23. Nh2 {[%clk 0:01:02.8]} 23... Qd5 {[%clk 0:01:18.5]} 24.
f3 {[%clk 0:00:55.8]} 24... Nf5 {[%clk 0:01:16]} 25. Ng4 {[%clk 0:00:37.3]}
25... Qxf3 {[%clk 0:01:08.4]} 26. Bg2 {[%clk 0:00:31.4]} 26... Qxg2+ {[%clk
0:01:06.1]} 27. Qxg2 {[%clk 0:00:30.8]} 27... Bxg2 {[%clk 0:01:06.8]} 28. Kxg2
{[%clk 0:00:31.2]} 28... h5 {[%clk 0:00:49.8]} 29. Nf6+ {[%clk 0:00:21.8]} 29...
Bxf6 {[%clk 0:00:49.3]} 30. exf6 {[%clk 0:00:22.1]} 30... Rfd8 {[%clk
0:00:45.6]} 31. Be5 {[%clk 0:00:20.2]} 31... Nxd4 {[%clk 0:00:30.6]} 32. Re4
{[%clk 0:00:19.3]} 32... Nf5 {[%clk 0:00:19.5]} 33. Kf3 {[%clk 0:00:15.1]} 33...
Rd3+ {[%clk 0:00:18.4]} 34. Kf4 {[%clk 0:00:12.2]} 34... Rxg3 {[%clk 0:00:13.4]}
35. Re2 {[%clk 0:00:05.4]} 35... Rg4+ {[%clk 0:00:11.4]} 36. Kf3 {[%clk
0:00:05.2]} 36... Nxh4+ {[%clk 0:00:11.9]} 37. Ke3 {[%clk 0:00:04.6]} 37... Nf5+
{[%clk 0:00:11.3]} 38. Kf3 {[%clk 0:00:04.7]} 38... Kh7 {[%clk 0:00:08.5]} 39.
Rd2 {[%clk 0:00:04]} 39... g5 {[%clk 0:00:08.1]} 40. Rd7 {[%clk 0:00:03.9]}
40... Kg6 {[%clk 0:00:08.6]} 41. Rcd1 {[%clk 0:00:02.8]} 41... Nh4+ {[%clk
0:00:09.5]} 42. Kf2 {[%clk 0:00:02.5]} 42... Rg2+ {[%clk 0:00:09.2]} 43. Ke3
{[%clk 0:00:02.6]} 43... Nf5+ {[%clk 0:00:08.9]} 44. Kf3 {[%clk 0:00:02.5]}
44... Rc2 {[%clk 0:00:06.1]} 45. Ra7 {[%clk 0:00:01]} 45... g4+ {[%clk
0:00:06.2]} 0-1

[Event "Late-Titled-Tuesday-Blitz-May-28-2024"]
[Site "Chess.com"]
[Date "2024.05.28"]
[Round "1"]
[White "jup1978"]
[Black "Byniolus"]
[Result "0-1"]
[WhiteElo "2421"]
[BlackElo "2728"]
[TimeControl "180+1"]
[EndTime "14:07:51 PDT"]
[Termination "Byniolus won by resignation"]

1. e4 {[%clk 0:02:58.6]} 1... d6 {[%clk 0:03:00.1]} 2. d4 {[%clk 0:02:55]} 2...
Nf6 {[%clk 0:03:00.6]} 3. f3 {[%clk 0:02:52.2]} 3... Nbd7 {[%clk 0:02:57.1]} 4.
Be3 {[%clk 0:02:47.4]} 4... e5 {[%clk 0:02:58]} 5. Ne2 {[%clk 0:02:42.8]} 5...
Be7 {[%clk 0:02:57.3]} 6. Nbc3 {[%clk 0:02:41.6]} 6... O-O {[%clk 0:02:57.2]} 7.
Qd2 {[%clk 0:02:42]} 7... c6 {[%clk 0:02:57.2]} 8. O-O-O {[%clk 0:02:39.9]} 8...
b5 {[%clk 0:02:57.5]} 9. dxe5 {[%clk 0:02:40.3]} 9... dxe5 {[%clk 0:02:55.3]}
10. Ng3 {[%clk 0:02:39]} 10... g6 {[%clk 0:02:45.8]} 11. h4 {[%clk 0:02:37.3]}
11... h5 {[%clk 0:02:40.9]} 12. Kb1 {[%clk 0:02:37.1]} 12... Qc7 {[%clk
0:02:36.2]} 13. Bg5 {[%clk 0:02:21.3]} 13... Nc5 {[%clk 0:02:24.6]} 14. Bd3
{[%clk 0:02:14.6]} 14... Rd8 {[%clk 0:02:20.4]} 15. Qe3 {[%clk 0:02:12.8]} 15...
Ne6 {[%clk 0:02:12.6]} 16. Bh6 {[%clk 0:02:00.1]} 16... Qb6 {[%clk 0:02:01.9]}
17. Nce2 {[%clk 0:01:56.5]} 17... Qxe3 {[%clk 0:02:01.1]} 18. Bxe3 {[%clk
0:01:57.4]} 18... Nc5 {[%clk 0:01:48.6]} 19. Nc1 {[%clk 0:01:48.5]} 19... Be6
{[%clk 0:01:39.6]} 20. c3 {[%clk 0:01:47.5]} 20... Nxd3 {[%clk 0:01:25.1]} 21.
Nxd3 {[%clk 0:01:48.4]} 21... Nd7 {[%clk 0:01:24.9]} 22. Ne2 {[%clk 0:01:47.8]}
22... f6 {[%clk 0:01:20.4]} 23. Nec1 {[%clk 0:01:39.8]} 23... Kf7 {[%clk
0:01:17.4]} 24. Nb3 {[%clk 0:01:37.2]} 24... Bxb3 {[%clk 0:01:02.7]} 25. axb3
{[%clk 0:01:38.1]} 25... Nf8 {[%clk 0:01:03.3]} 26. Kc2 {[%clk 0:01:35.2]} 26...
a5 {[%clk 0:00:59.9]} 27. Nc5 {[%clk 0:01:27.5]} 27... Bxc5 {[%clk 0:00:56.8]}
28. Bxc5 {[%clk 0:01:27.3]} 28... Ne6 {[%clk 0:00:57.2]} 29. Be3 {[%clk
0:01:27.9]} 29... f5 {[%clk 0:00:53.9]} 30. Rxd8 {[%clk 0:01:22.7]} 30... Rxd8
{[%clk 0:00:51.5]} 31. Bb6 {[%clk 0:01:13.9]} 31... Ra8 {[%clk 0:00:51.5]} 32.
Ra1 {[%clk 0:01:10.9]} 32... a4 {[%clk 0:00:50.9]} 33. bxa4 {[%clk 0:01:03.2]}
33... bxa4 {[%clk 0:00:51.8]} 34. Be3 {[%clk 0:00:59.1]} 34... Kf6 {[%clk
0:00:36.3]} 35. Rd1 {[%clk 0:00:56.5]} 35... Ke7 {[%clk 0:00:30.3]} 36. Bg5+
{[%clk 0:00:40]} 36... Nxg5 {[%clk 0:00:30]} 37. hxg5 {[%clk 0:00:40.9]} 37...
fxe4 {[%clk 0:00:27.7]} 38. fxe4 {[%clk 0:00:41.8]} 38... Rf8 {[%clk 0:00:28]}
39. Rd2 {[%clk 0:00:30.4]} 39... Rf4 {[%clk 0:00:27.5]} 40. Re2 {[%clk
0:00:30.6]} 40... Rg4 {[%clk 0:00:26.1]} 41. Kb1 {[%clk 0:00:31.2]} 41... Kd6
{[%clk 0:00:22.1]} 42. Ka2 {[%clk 0:00:31.6]} 42... Kc5 {[%clk 0:00:22.8]} 43.
Ka3 {[%clk 0:00:31.3]} 43... Kb5 {[%clk 0:00:23.2]} 44. Rf2 {[%clk 0:00:11.3]}
44... Rxg5 {[%clk 0:00:21.9]} 45. Rf8 {[%clk 0:00:08.5]} 45... Rxg2 {[%clk
0:00:21.9]} 46. Rb8+ {[%clk 0:00:09]} 46... Kc5 {[%clk 0:00:21.9]} 47. Kxa4
{[%clk 0:00:09.4]} 47... h4 {[%clk 0:00:22.3]} 48. Kb3 {[%clk 0:00:05.9]} 48...
h3 {[%clk 0:00:18.6]} 49. Rh8 {[%clk 0:00:06.5]} 49... h2 {[%clk 0:00:19]} 50.
Ka3 {[%clk 0:00:05]} 50... g5 {[%clk 0:00:19.1]} 51. Rh5 {[%clk 0:00:04.8]}
51... g4 {[%clk 0:00:17.4]} 52. Rxe5+ {[%clk 0:00:04.1]} 52... Kb6 {[%clk
0:00:18]} 53. Rh5 {[%clk 0:00:04.2]} 53... g3 {[%clk 0:00:18.6]} 54. b4 {[%clk
0:00:03.5]} 54... Rg1 {[%clk 0:00:18.3]} 0-1

[Event "Late-Titled-Tuesday-Blitz-May-28-2024"]
[Site "Chess.com"]
[Date "2024.05.28"]
[Round "1"]
[White "ClauAmura"]
[Black "crazy_but_lazy"]
[Result "1-0"]
[WhiteElo "2426"]
[BlackElo "2686"]
[TimeControl "180+1"]
[EndTime "14:07:51 PDT"]
[Termination "ClauAmura won by checkmate"]

1. d4 {[%clk 0:02:59]} 1... Nf6 {[%clk 0:02:59.3]} 2. Bg5 {[%clk 0:02:58.2]}
2... e6 {[%clk 0:02:58.9]} 3. e4 {[%clk 0:02:57.2]} 3... h6 {[%clk 0:02:59.1]}
4. Bxf6 {[%clk 0:02:57.1]} 4... Qxf6 {[%clk 0:02:59.9]} 5. Nc3 {[%clk
0:02:57.3]} 5... d6 {[%clk 0:02:57.4]} 6. Qd2 {[%clk 0:02:55.4]} 6... g6 {[%clk
0:02:56]} 7. f4 {[%clk 0:02:55.3]} 7... Bg7 {[%clk 0:02:55.7]} 8. Nf3 {[%clk
0:02:55.9]} 8... b6 {[%clk 0:02:43.7]} 9. g4 {[%clk 0:02:48.8]} 9... Bb7 {[%clk
0:02:41.8]} 10. g5 {[%clk 0:02:47.7]} 10... hxg5 {[%clk 0:02:39.6]} 11. Nxg5
{[%clk 0:02:38.1]} 11... a6 {[%clk 0:02:35.7]} 12. O-O-O {[%clk 0:02:37.2]}
12... Nd7 {[%clk 0:02:32.7]} 13. Bg2 {[%clk 0:02:33.8]} 13... Qe7 {[%clk
0:02:24.2]} 14. e5 {[%clk 0:02:30.5]} 14... Bxg2 {[%clk 0:02:19.6]} 15. Qxg2
{[%clk 0:02:31.4]} 15... d5 {[%clk 0:02:19.9]} 16. h4 {[%clk 0:02:09.5]} 16...
O-O-O {[%clk 0:02:17.4]} 17. Nxd5 {[%clk 0:02:00.9]} 17... exd5 {[%clk 0:02:14]}
18. Qxd5 {[%clk 0:02:00.7]} 18... Rhf8 {[%clk 0:01:10.4]} 19. Qc4 {[%clk
0:01:53.4]} 19... Nb8 {[%clk 0:01:02.2]} 20. h5 {[%clk 0:01:50.8]} 20... Bh6
{[%clk 0:01:00.3]} 21. Rdg1 {[%clk 0:01:20]} 21... Bxg5 {[%clk 0:00:57.7]} 22.
Rxg5 {[%clk 0:01:15.8]} 22... gxh5 {[%clk 0:00:57.6]} 23. Rgxh5 {[%clk
0:01:13.5]} 23... Qe6 {[%clk 0:00:52.3]} 24. Qa4 {[%clk 0:00:48.1]} 24... Qd5
{[%clk 0:00:41.6]} 25. c3 {[%clk 0:00:46.8]} 25... Rg8 {[%clk 0:00:42]} 26. R5h2
{[%clk 0:00:40.6]} 26... Rg2 {[%clk 0:00:38.5]} 27. Rxg2 {[%clk 0:00:35]} 27...
Qxg2 {[%clk 0:00:39.4]} 28. Qd1 {[%clk 0:00:34]} 28... Qf2 {[%clk 0:00:29.4]}
29. Rf1 {[%clk 0:00:32.9]} 29... Qe3+ {[%clk 0:00:24.7]} 30. Kb1 {[%clk
0:00:30.4]} 30... Rg8 {[%clk 0:00:23.8]} 31. Qc2 {[%clk 0:00:22.2]} 31... Nc6
{[%clk 0:00:18.7]} 32. Qf5+ {[%clk 0:00:22.1]} 32... Kb7 {[%clk 0:00:18.9]} 33.
Qc2 {[%clk 0:00:20.1]} 33... Na5 {[%clk 0:00:15.8]} 34. b3 {[%clk 0:00:19.3]}
34... Nc6 {[%clk 0:00:14.8]} 35. f5 {[%clk 0:00:18.5]} 35... a5 {[%clk
0:00:12.9]} 36. f6 {[%clk 0:00:17.7]} 36... Rg3 {[%clk 0:00:12.4]} 37. Rc1
{[%clk 0:00:14.9]} 37... Nd8 {[%clk 0:00:11.9]} 38. Kb2 {[%clk 0:00:12.9]} 38...
Qf3 {[%clk 0:00:11.7]} 39. Ka3 {[%clk 0:00:12.6]} 39... Ne6 {[%clk 0:00:11.3]}
40. Rd1 {[%clk 0:00:11.7]} 40... Qd5 {[%clk 0:00:10.5]} 41. Rd2 {[%clk
0:00:11.5]} 41... b5 {[%clk 0:00:10.5]} 42. c4 {[%clk 0:00:11.2]} 42... b4+
{[%clk 0:00:10.5]} 43. Kb2 {[%clk 0:00:11.2]} 43... Qe4 {[%clk 0:00:10.8]} 44.
Qxe4+ {[%clk 0:00:10.5]} 44... Kb6 {[%clk 0:00:11.1]} 45. Qd5 {[%clk 0:00:10.6]}
45... Nf4 {[%clk 0:00:10.5]} 46. Qb5+ {[%clk 0:00:11.1]} 46... Ka7 {[%clk
0:00:10.9]} 47. Qxa5+ {[%clk 0:00:11.8]} 47... Kb7 {[%clk 0:00:11.6]} 48. Qxb4+
{[%clk 0:00:12.6]} 48... Kc8 {[%clk 0:00:12.4]} 49. Qf8+ {[%clk 0:00:12.7]}
49... Kb7 {[%clk 0:00:13]} 50. c5 {[%clk 0:00:12.7]} 50... Ne6 {[%clk
0:00:12.6]} 51. c6+ {[%clk 0:00:12.8]} 51... Kb6 {[%clk 0:00:12.7]} 52. Qb4+
{[%clk 0:00:13]} 52... Kxc6 {[%clk 0:00:13.3]} 53. Rc2+ {[%clk 0:00:13.7]} 53...
Kd7 {[%clk 0:00:13.8]} 54. Qb5+ {[%clk 0:00:13.7]} 54... Kc8 {[%clk 0:00:13.9]}
55. Qc6 {[%clk 0:00:14]} 55... Nxd4 {[%clk 0:00:13.6]} 56. Qxc7# {[%clk
0:00:13.6]} 1-0

[Event "Late-Titled-Tuesday-Blitz-May-28-2024"]
[Site "Chess.com"]
[Date "2024.05.28"]
[Round "1"]
[White "MeisterJabo"]
[Black "MyDream003"]
[Result "1-0"]
[WhiteElo "2474"]
[BlackElo "2815"]
[TimeControl "180+1"]
[EndTime "14:07:52 PDT"]
[Termination "MeisterJabo won on time"]

1. e4 {[%clk 0:03:00.2]} 1... c6 {[%clk 0:02:57.1]} 2. d4 {[%clk 0:02:59.1]}
2... d6 {[%clk 0:02:57.6]} 3. Nc3 {[%clk 0:02:56.5]} 3... g6 {[%clk 0:02:57.9]}
4. Nf3 {[%clk 0:02:56.2]} 4... Bg7 {[%clk 0:02:58]} 5. Be2 {[%clk 0:02:56.9]}
5... Nf6 {[%clk 0:02:57.6]} 6. O-O {[%clk 0:02:57]} 6... Rg8 {[%clk 0:02:58]} 7.
a4 {[%clk 0:02:55.8]} 7... a5 {[%clk 0:02:57.6]} 8. h3 {[%clk 0:02:52.1]} 8...
h6 {[%clk 0:02:57.5]} 9. Be3 {[%clk 0:02:47.2]} 9... g5 {[%clk 0:02:57.5]} 10.
e5 {[%clk 0:02:47]} 10... dxe5 {[%clk 0:02:49.5]} 11. Nxe5 {[%clk 0:02:42]}
11... Be6 {[%clk 0:02:42.2]} 12. Bf3 {[%clk 0:02:31.4]} 12... Nbd7 {[%clk
0:02:41.7]} 13. Nd3 {[%clk 0:02:23.8]} 13... Bh8 {[%clk 0:02:35.9]} 14. Re1
{[%clk 0:01:29]} 14... Qc7 {[%clk 0:02:23.7]} 15. Ne4 {[%clk 0:01:16.1]} 15...
Nxe4 {[%clk 0:02:13.3]} 16. Bxe4 {[%clk 0:01:17]} 16... Nf6 {[%clk 0:02:12.2]}
17. Bf3 {[%clk 0:01:16.4]} 17... Bf5 {[%clk 0:02:06.4]} 18. Ne5 {[%clk
0:01:14.4]} 18... Nd5 {[%clk 0:01:58.7]} 19. c4 {[%clk 0:01:09.7]} 19... Nb4
{[%clk 0:01:53.1]} 20. Bg4 {[%clk 0:01:04.1]} 20... Bxg4 {[%clk 0:01:45.2]} 21.
Qxg4 {[%clk 0:01:00.2]} 21... Bxe5 {[%clk 0:01:26.1]} 22. dxe5 {[%clk
0:00:59.4]} 22... Qd7 {[%clk 0:01:17.3]} 23. e6 {[%clk 0:00:57.4]} 23... Qxe6
{[%clk 0:01:17.1]} 24. Qxe6 {[%clk 0:00:54.8]} 24... fxe6 {[%clk 0:01:18]} 25.
Rad1 {[%clk 0:00:52]} 25... Rg6 {[%clk 0:01:02.9]} 26. Bc5 {[%clk 0:00:49.4]}
26... Rf6 {[%clk 0:00:58.3]} 27. Re3 {[%clk 0:00:41.8]} 27... Na6 {[%clk
0:00:58.3]} 28. Bb6 {[%clk 0:00:37]} 28... Nb4 {[%clk 0:00:58.5]} 29. Bc5 {[%clk
0:00:36.5]} 29... Ra6 {[%clk 0:00:54]} 30. b3 {[%clk 0:00:34.7]} 30... Na2
{[%clk 0:00:42.5]} 31. Bd4 {[%clk 0:00:34.1]} 31... Rg6 {[%clk 0:00:40.2]} 32.
Rde1 {[%clk 0:00:33.1]} 32... Kd7 {[%clk 0:00:39.5]} 33. R3e2 {[%clk 0:00:30.3]}
33... Nb4 {[%clk 0:00:39.6]} 34. Rd1 {[%clk 0:00:31]} 34... Kc8 {[%clk
0:00:35.1]} 35. Bc5 {[%clk 0:00:29.3]} 35... Kc7 {[%clk 0:00:27.6]} 36. Bxe7
{[%clk 0:00:28.6]} 36... Ra8 {[%clk 0:00:28.3]} 37. Bd6+ {[%clk 0:00:28.8]}
37... Kb6 {[%clk 0:00:28.4]} 38. Bxb4 {[%clk 0:00:26.1]} 38... axb4 {[%clk
0:00:29.3]} 39. Rd6 {[%clk 0:00:26.4]} 39... Re8 {[%clk 0:00:29.6]} 40. Re5
{[%clk 0:00:25.2]} 40... Re7 {[%clk 0:00:27.3]} 41. c5+ {[%clk 0:00:24]} 41...
Ka5 {[%clk 0:00:27]} 42. g4 {[%clk 0:00:21.6]} 42... Rf6 {[%clk 0:00:27.3]} 43.
Kg2 {[%clk 0:00:21.8]} 43... Rg6 {[%clk 0:00:23.3]} 44. f3 {[%clk 0:00:21.2]}
44... Rf6 {[%clk 0:00:23.9]} 45. Kg3 {[%clk 0:00:21.2]} 45... Ka6 {[%clk
0:00:24.5]} 46. Re3 {[%clk 0:00:20.3]} 46... Ka5 {[%clk 0:00:22.8]} 47. h4
{[%clk 0:00:20.4]} 47... Rg6 {[%clk 0:00:21.8]} 48. hxg5 {[%clk 0:00:18.8]}
48... hxg5 {[%clk 0:00:22.7]} 49. Re5 {[%clk 0:00:18.9]} 49... Ka6 {[%clk
0:00:22.4]} 50. Rd4 {[%clk 0:00:17.6]} 50... Ka5 {[%clk 0:00:22.5]} 51. Rd8
{[%clk 0:00:17.3]} 1-0

[Event "Late-Titled-Tuesday-Blitz-May-28-2024"]
[Site "Chess.com"]
[Date "2024.05.28"]
[Round "1"]
[White "Redzishchess"]
[Black "GMTalks_Youtube"]
[Result "0-1"]
[WhiteElo "2447"]
[BlackElo "2781"]
[TimeControl "180+1"]
[EndTime "14:07:53 PDT"]
[Termination "GMTalks_Youtube won by resignation"]

1. d4 {[%clk 0:02:56.1]} 1... Nf6 {[%clk 0:02:58.9]} 2. c4 {[%clk 0:02:55.9]}
2... e6 {[%clk 0:02:58.6]} 3. g3 {[%clk 0:02:53.7]} 3... Bb4+ {[%clk 0:02:57.8]}
4. Nd2 {[%clk 0:02:52.2]} 4... d5 {[%clk 0:02:56.3]} 5. Bg2 {[%clk 0:02:52.4]}
5... O-O {[%clk 0:02:55.9]} 6. Qc2 {[%clk 0:02:44.5]} 6... b6 {[%clk 0:02:28.3]}
7. Nf3 {[%clk 0:02:38.2]} 7... Bb7 {[%clk 0:02:24.5]} 8. O-O {[%clk 0:02:38.2]}
8... Nbd7 {[%clk 0:02:00.9]} 9. Rd1 {[%clk 0:02:08.7]} 9... c5 {[%clk
0:01:52.6]} 10. a3 {[%clk 0:02:01.6]} 10... Bxd2 {[%clk 0:01:51.9]} 11. Bxd2
{[%clk 0:02:02.5]} 11... dxc4 {[%clk 0:01:46.5]} 12. dxc5 {[%clk 0:01:51.9]}
12... Nxc5 {[%clk 0:01:45.2]} 13. Bg5 {[%clk 0:01:51.7]} 13... Qe7 {[%clk
0:01:27.1]} 14. Qxc4 {[%clk 0:01:50]} 14... Rac8 {[%clk 0:01:20.6]} 15. Qh4
{[%clk 0:01:41.2]} 15... Nce4 {[%clk 0:01:20.5]} 16. Ne5 {[%clk 0:01:16.4]}
16... Nxg5 {[%clk 0:01:19.5]} 17. Bxb7 {[%clk 0:01:05.3]} 17... Qxb7 {[%clk
0:01:13.7]} 18. Qxg5 {[%clk 0:01:05.7]} 18... Rc5 {[%clk 0:01:05.8]} 19. Qe3
{[%clk 0:00:34.6]} 19... Rfc8 {[%clk 0:01:01.3]} 20. Rac1 {[%clk 0:00:23.2]}
20... Nd5 {[%clk 0:00:55.3]} 21. Qd2 {[%clk 0:00:20.5]} 21... h6 {[%clk
0:00:46]} 22. b4 {[%clk 0:00:17.2]} 22... R5c7 {[%clk 0:00:43]} 23. b5 {[%clk
0:00:12.5]} 23... Nc3 {[%clk 0:00:40.8]} 24. Rxc3 {[%clk 0:00:04.2]} 24... Rxc3
{[%clk 0:00:40]} 25. Nc6 {[%clk 0:00:04.9]} 25... R3xc6 {[%clk 0:00:37.5]} 26.
bxc6 {[%clk 0:00:05.8]} 26... Qxc6 {[%clk 0:00:38.1]} 27. h4 {[%clk 0:00:05.3]}
27... h5 {[%clk 0:00:27]} 28. Qg5 {[%clk 0:00:04.8]} 28... g6 {[%clk 0:00:25.8]}
29. Qe7 {[%clk 0:00:03.8]} 29... Qc5 {[%clk 0:00:11.7]} 30. Qxa7 {[%clk
0:00:01.2]} 30... Kg7 {[%clk 0:00:08]} 31. Qd7 {[%clk 0:00:01.8]} 31... Rc7
{[%clk 0:00:07.5]} 32. Qd3 {[%clk 0:00:01.6]} 32... Ra7 {[%clk 0:00:07]} 33. a4
{[%clk 0:00:01]} 33... Rxa4 {[%clk 0:00:06.5]} 34. Qd7 {[%clk 0:00:01.5]} 34...
Ra2 {[%clk 0:00:04.9]} 35. e3 {[%clk 0:00:01.2]} 35... Qf5 {[%clk 0:00:04.5]}
36. Qd4+ {[%clk 0:00:01.3]} 36... Qf6 {[%clk 0:00:04.8]} 37. Qxf6+ {[%clk
0:00:01.4]} 37... Kxf6 {[%clk 0:00:04.8]} 38. Rd7 {[%clk 0:00:02.3]} 38... Rb2
{[%clk 0:00:04.8]} 39. Rb7 {[%clk 0:00:02.8]} 39... b5 {[%clk 0:00:05.5]} 40.
Kg2 {[%clk 0:00:03.4]} 40... b4 {[%clk 0:00:06.2]} 41. Kf3 {[%clk 0:00:04.1]}
41... b3 {[%clk 0:00:06.9]} 42. Kg2 {[%clk 0:00:02.6]} 42... Rb1 {[%clk
0:00:07.8]} 43. Kf3 {[%clk 0:00:03]} 43... b2 {[%clk 0:00:08.7]} 44. Kg2 {[%clk
0:00:03.6]} 44... e5 {[%clk 0:00:09.2]} 45. Rb6+ {[%clk 0:00:03.8]} 45... Ke7
{[%clk 0:00:08.4]} 46. Rb7+ {[%clk 0:00:04.1]} 46... Ke6 {[%clk 0:00:09]} 47.
Rb6+ {[%clk 0:00:04.3]} 47... Kd5 {[%clk 0:00:09.6]} 48. Rb7 {[%clk 0:00:05]}
48... Kc5 {[%clk 0:00:10.1]} 49. Rxf7 {[%clk 0:00:04.6]} 49... Ra1 {[%clk
0:00:08.6]} 50. Rb7 {[%clk 0:00:04.2]} 50... b1=Q {[%clk 0:00:08.3]} 0-1